fUST/lending_fUST_20260313
["ID","MTS","AMOUNT","RATE_DAILY","PERIOD"]
[408305069,1773386680126,-655.18,0.00036909,120]
[408305070,1773386680166,-1987.69,0.00036909,120]
[408305071,1773386680204,-1718.11,0.00036909,120]
[408305072,1773386680241,-1424.34,0.00036909,120]
[408305073,1773386680281,-1987.69,0.00036909,120]
[408305074,1773386680318,-655.18,0.00036909,120]
[408305075,1773386680354,-1718.11,0.00036909,120]
[408305076,1773386680393,-1424.34,0.00036909,120]
[408305077,1773386680436,-655.18,0.00036909,120]
[408305078,1773386680476,-1987.69,0.00036909,120]
[408305079,1773386680513,-1718.11,0.00036909,120]
[408305080,1773386680551,-1424.42024331,0.00036909,120]
[408305081,1773386680591,-1987.69,0.00036909,120]
[408305082,1773386680632,-655.18,0.00036909,120]
[408305083,1773386680672,-1718.11,0.00036909,120]
[408305084,1773386680712,-1987.69,0.00036909,120]
[408305085,1773386680755,-655.18,0.00036909,120]
[408305086,1773386680794,-1718.11,0.00036909,120]
[408305087,1773386680831,-655.18,0.00036909,120]
[408305088,1773386680867,-1718.11,0.00036909,120]
[408305089,1773386680905,-655.18,0.00036909,120]
[408305090,1773386680942,-1718.11,0.00036909,120]
[408305091,1773386680980,-1987.69,0.00036909,120]
[408305092,1773386681019,-1280.12,0.00036909,120]
[408305093,1773386681057,-655.18,0.00036909,120]
[408305094,1773386681092,-1987.69,0.00036909,120]
[408305095,1773386681126,-1280.12,0.00036909,120]
[408305096,1773386681163,-1987.69,0.00036909,120]
[408305097,1773386681199,-655.18,0.00036909,120]
[408305098,1773386681234,-1280.12,0.00036909,120]
[408305099,1773386681272,-655.18,0.00036909,120]
[408305100,1773386681312,-1987.69,0.00036909,120]
[408305101,1773386681349,-1280.12,0.00036909,120]
[408305102,1773386681386,-655.18,0.00036909,120]
[408305103,1773386681427,-1987.69,0.00036909,120]
[408305104,1773386681467,-1280.12,0.00036909,120]
[408305105,1773386681506,-655.18,0.00036909,120]
[408305106,1773386681549,-1987.69,0.00036909,120]
[408305107,1773386681589,-655.18,0.00036909,120]
[408305108,1773386681628,-1987.69,0.00036909,120]
[408305109,1773386681668,-1280.12,0.00036909,120]
[408305110,1773386681709,-655.18,0.00036909,120]
[408305111,1773386681748,-1074.71,0.00036909,120]
[408305112,1773386681786,-1987.69,0.00036909,120]
[408305113,1773386681822,-1280.12,0.00036909,120]
[408305114,1773386681859,-655.18,0.00036909,120]
[408305115,1773386681894,-1280.12,0.00036909,120]
[408305116,1773386681929,-1987.69,0.00036909,120]
[408305117,1773386681963,-1074.71,0.00036909,120]
[408305118,1773386681999,-655.18,0.00036909,120]
[408305119,1773386682034,-1280.12,0.00036909,120]
[408305120,1773386682070,-1987.81619374,0.00036909,120]
[408305121,1773386682106,-500.0,0.00036909,120]
[408305122,1773386682149,-1074.71,0.00036909,120]
[408305123,1773386682186,-655.18,0.00036909,120]
[408305124,1773386682222,-500.0,0.00036909,120]
[408305125,1773386682258,-1280.12,0.00036909,120]
[408305126,1773386682295,-1074.71,0.00036909,120]
[408305127,1773386682333,-655.18,0.00036909,120]
[408305128,1773386682373,-363.52313039,0.00036909,120]
[408305129,1773386682413,-1280.12,0.00036909,120]
[408305130,1773386682455,-1074.71,0.00036909,120]
[408305131,1773386682497,-500.0,0.00036909,120]
[408305132,1773386682538,-655.18,0.00036909,120]
[408305133,1773386682575,-1074.71,0.00036909,120]
[408305134,1773386682611,-209.4131045,0.00036909,120]
[408305135,1773386682648,-655.18,0.00036909,120]
[408305136,1773386682843,-1280.12,0.00036909,120]
[408305137,1773386682879,-1074.71,0.00036909,120]
[408305138,1773386682914,-655.18,0.00036909,120]
[408305139,1773386682950,-1280.12,0.00036909,120]
[408305140,1773386682985,-655.27679991,0.00036909,120]
[408305141,1773386683020,-1280.12,0.00036909,120]
[408305142,1773386683054,-520.32177925,0.00036909,120]
[408305143,1773386683088,-1280.12,0.00036909,120]
[408305144,1773386683123,-1280.12,0.00036909,120]
[408305145,1773386683158,-1280.12,0.00036909,120]
[408305146,1773386683198,-1280.12,0.00036909,120]
[408305147,1773386683234,-614.61,0.00036909,120]
[408305148,1773386683270,-1280.12,0.00036909,120]
[408305149,1773386683307,-614.61,0.00036909,120]
[408305150,1773386683343,-1280.12,0.00036909,120]
[408305151,1773386683381,-614.61,0.00036909,120]
[408305152,1773386683422,-1280.12,0.00036909,120]
[408305153,1773386683461,-614.61,0.00036909,120]
[408305154,1773386683503,-1280.12,0.00036909,120]
[408305155,1773386683543,-614.61,0.00036909,120]
[408305156,1773386683580,-1280.12,0.00036909,120]
[408305157,1773386683619,-614.61,0.00036909,120]
[408305158,1773386683661,-1280.16776426,0.00036909,120]
[408305159,1773386683702,-614.61,0.00036909,120]
[408305160,1773386683746,-614.61,0.00036909,120]
[408305161,1773386683787,-614.61,0.00036909,120]
[408305162,1773386683824,-614.61,0.00036909,120]
[408305163,1773386683860,-614.61,0.00036909,120]
[408305164,1773386683899,-614.61,0.00036909,120]
[408305165,1773386683937,-614.61,0.00036909,120]
[408305166,1773386683975,-1074.71,0.00036909,120]
[408305167,1773386684013,-1074.71,0.00036909,120]
[408305168,1773386684053,-614.61,0.00036909,120]
[408305169,1773386684092,-1074.71,0.00036909,120]
[408305170,1773386684127,-614.61,0.00036909,120]
[408305171,1773386684167,-1074.71,0.00036909,120]
[408305172,1773386684207,-614.61,0.00036909,120]
[408305173,1773386684244,-1074.71,0.00036909,120]
[408305174,1773386684282,-614.61,0.00036909,120]
[408305175,1773386684319,-1074.71,0.00036909,120]
[408305176,1773386684356,-614.61,0.00036909,120]
[408305177,1773386684398,-1718.11,0.00036909,120]
[408305178,1773386684442,-1074.71,0.00036909,120]
[408305179,1773386684483,-614.61,0.00036909,120]
[408305180,1773386684526,-1074.71,0.00036909,120]
[408305181,1773386684565,-1718.11,0.00036909,120]
[408305182,1773386684607,-614.61,0.00036909,120]
[408305183,1773386684651,-1074.71,0.00036909,120]
[408305184,1773386684705,-1718.11,0.00036909,120]
[408305185,1773386684761,-614.61,0.00036909,120]
[408305186,1773386684815,-1074.71,0.00036909,120]
[408305187,1773386684860,-1718.32075646,0.00036909,120]
[408305188,1773386684906,-614.61,0.00036909,120]
[408305189,1773386684965,-1074.71,0.00036909,120]
[408305190,1773386685008,-614.61,0.00036909,120]
[408305191,1773386685053,-1074.71,0.00036909,120]
[408305192,1773386685097,-614.74670512,0.00036909,120]
[408305193,1773386685140,-500.0,0.00036909,120]
[408305194,1773386685183,-1074.71,0.00036909,120]
[408305195,1773386685235,-500.0,0.00036909,120]
[408305196,1773386685277,-1074.71,0.00036909,120]
[408305197,1773386685320,-22071.51,0.00036909,120]
[408305198,1773386685361,-500.0,0.00036909,120]
[408305199,1773386685403,-1074.79,0.00036909,120]
[408305200,1773386685444,-22071.51,0.00036909,120]
[408305201,1773386685483,-500.0,0.00036909,120]
[408305202,1773386685521,-500.0,0.00036909,120]
[408305203,1773386685558,-22071.51,0.00036909,120]
[408305204,1773386685600,-500.0,0.00036909,120]
[408305205,1773386685644,-500.0,0.00036909,120]
[408305206,1773386685688,-22071.51,0.00036909,120]
[408305207,1773386685728,-500.0,0.00036909,120]
[408305208,1773386685768,-500.0,0.00036909,120]
[408305209,1773386685805,-249.25972517,0.00036909,120]
[408305210,1773386685841,-22071.51,0.00036909,120]
[408305211,1773386685876,-500.0,0.00036909,120]
[408305212,1773386685913,-500.0,0.00036909,120]
[408305213,1773386685952,-500.0,0.00036909,120]
[408305214,1773386685991,-22071.51,0.00036909,120]
[408305215,1773386686026,-500.0,0.00036909,120]
[408305216,1773386686064,-500.0,0.00036909,120]
[408305217,1773386686116,-22071.51,0.00036909,120]
[408305218,1773386686167,-197.73461815,0.00036909,120]
[408305219,1773386686207,-22071.51,0.00036909,120]
[408305221,1773386686245,-500.0,0.00036909,120]
[408305222,1773386686285,-22071.51,0.00036909,120]
[408305223,1773386686324,-500.0,0.00036909,120]
[408305224,1773386686364,-500.0,0.00036909,120]
[408305225,1773386686411,-22071.51,0.00036909,120]
[408305226,1773386686464,-22071.51,0.00036909,120]
[408305227,1773386686511,-22071.51,0.00036909,120]
[408305228,1773386686555,-22071.51,0.00036909,120]
[408305229,1773386686597,-500.0,0.00036909,120]
[408305230,1773386686641,-1730.42,0.00036909,120]
[408305231,1773386686686,-22071.51,0.00036909,120]
[408305232,1773386686729,-500.0,0.00036909,120]
[408305233,1773386686771,-1730.42,0.00036909,120]
[408305234,1773386686810,-22071.51,0.00036909,120]
[408305235,1773386686845,-500.0,0.00036909,120]
[408305236,1773386686881,-1730.42,0.00036909,120]
[408305237,1773386686919,-22071.51,0.00036909,120]
[408305238,1773386686955,-500.0,0.00036909,120]
[408305239,1773386686992,-1730.42,0.00036909,120]
[408305240,1773386687030,-500.0,0.00036909,120]
[408305241,1773386687300,-22071.51,0.00036909,120]
[408305242,1773386687342,-1730.42,0.00036909,120]
[408305243,1773386687384,-500.0,0.00036909,120]
[408305244,1773386687431,-1730.42,0.00036909,120]
[408305245,1773386687482,-22071.51,0.00036909,120]
[408305246,1773386687524,-500.0,0.00036909,120]
[408305247,1773386687567,-500.0,0.00036909,120]
[408305248,1773386687611,-1730.42,0.00036909,120]
[408305249,1773386687657,-22071.51,0.00036909,120]
[408305250,1773386687702,-291.11554846,0.00036909,120]
[408305251,1773386687748,-500.0,0.00036909,120]
[408305252,1773386687794,-1730.42,0.00036909,120]
[408305253,1773386687841,-22071.51,0.00036909,120]
[408305254,1773386687881,-500.0,0.00036909,120]
[408305255,1773386687919,-1730.42,0.00036909,120]
[408305256,1773386687957,-22071.51,0.00036909,120]
[408305257,1773386687993,-1730.42,0.00036909,120]
[408305258,1773386688031,-22071.51,0.00036909,120]
[408305259,1773386688068,-1730.42,0.00036909,120]
[408305260,1773386688106,-22071.51,0.00036909,120]
[408305261,1773386688141,-1730.42,0.00036909,120]
[408305262,1773386688179,-22071.5196185,0.00036909,120]
[408305263,1773386688217,-1730.42,0.00036909,120]
[408305264,1773386688254,-1730.42,0.00036909,120]
[408305265,1773386688288,-500.0,0.00036909,120]
[408305266,1773386688324,-1730.42,0.00036909,120]
[408305267,1773386688359,-500.0,0.00036909,120]
[408305268,1773386688397,-4270.32,0.00036909,120]
[408305269,1773386688437,-1730.42,0.00036909,120]
[408305270,1773386688477,-500.0,0.00036909,120]
[408305271,1773386688517,-500.0,0.00036909,120]
[408305272,1773386688557,-4270.32,0.00036909,120]
[408305273,1773386688596,-1730.42,0.00036909,120]
[408305274,1773386688633,-500.0,0.00036909,120]
[408305275,1773386688670,-500.0,0.00036909,120]
[408305276,1773386688706,-4270.32,0.00036909,120]
[408305277,1773386688743,-1730.42,0.00036909,120]
[408305278,1773386688779,-500.0,0.00036909,120]
[408305279,1773386688815,-500.0,0.00036909,120]
[408305280,1773386688851,-1730.42,0.00036909,120]
[408305281,1773386688886,-532.13897537,0.00036909,120]
[408305282,1773386688922,-500.0,0.00036909,120]
[408305283,1773386688958,-500.0,0.00036909,120]
[408305284,1773386688993,-1730.42,0.00036909,120]
[408305285,1773386689028,-500.0,0.00036909,120]
[408305286,1773386689063,-4270.32,0.00036909,120]
[408305287,1773386689098,-500.0,0.00036909,120]
[408305288,1773386689135,-1730.42,0.00036909,120]
[408305289,1773386689170,-4270.32,0.00036909,120]
[408305290,1773386689205,-500.0,0.00036909,120]
[408305291,1773386689241,-500.0,0.00036909,120]
[408305292,1773386689277,-1730.42,0.00036909,120]
[408305293,1773386689314,-4270.32,0.00036909,120]
[408305294,1773386689350,-500.0,0.00036909,120]
[408305295,1773386689386,-500.0,0.00036909,120]
[408305296,1773386689424,-1730.42,0.00036909,120]
[408305297,1773386689460,-4270.32,0.00036909,120]
[408305298,1773386689498,-500.0,0.00036909,120]
[408305299,1773386689531,-500.0,0.00036909,120]
[408305300,1773386689567,-1730.61405406,0.00036909,120]
[408305301,1773386689604,-4270.32,0.00036909,120]
[408305302,1773386689641,-384.43531752,0.00036909,120]
[408305303,1773386689679,-500.0,0.00036909,120]
[408305304,1773386689717,-500.0,0.00036909,120]
[408305305,1773386689757,-4270.32,0.00036909,120]
[408305306,1773386689798,-500.0,0.00036909,120]
[408305307,1773386689838,-500.0,0.00036909,120]
[408305308,1773386689878,-500.0,0.00036909,120]
[408305309,1773386689916,-4270.32,0.00036909,120]
[408305310,1773386689952,-500.0,0.00036909,120]
[408305311,1773386689986,-490.55849861,0.00036909,120]
[408305312,1773386690020,-500.0,0.00036909,120]
[408305313,1773386690054,-4270.32,0.00036909,120]
[408305314,1773386690087,-292.23957587,0.00036909,120]
[408305315,1773386690122,-187.20411589,0.00036909,120]
[408305316,1773386690156,-4270.32,0.00036909,120]
[408305317,1773386690193,-500.0,0.00036909,120]
[408305318,1773386690229,-4270.32,0.00036909,120]
[408305319,1773386690266,-500.0,0.00036909,120]
[408305320,1773386690303,-4270.32,0.00036909,120]
[408305321,1773386690340,-845.74,0.00036909,120]
[408305322,1773386690380,-500.0,0.00036909,120]
[408305323,1773386690421,-4270.32,0.00036909,120]
[408305324,1773386690461,-489.92008414,0.00036909,120]
[408305325,1773386690501,-845.74,0.00036909,120]
[408305326,1773386690539,-4270.32,0.00036909,120]
[408305327,1773386690580,-500.0,0.00036909,120]
[408305328,1773386690620,-828.16,0.00036909,120]
[408305329,1773386690668,-845.74,0.00036909,120]
[408305330,1773386690711,-4270.32,0.00036909,120]
[408305331,1773386690753,-500.0,0.00036909,120]
[408305332,1773386690790,-845.74,0.00036909,120]
[408305333,1773386690828,-828.16,0.00036909,120]
[408305334,1773386690864,-538.38584057,0.00036909,120]
[408305335,1773386690900,-4270.32,0.00036909,120]
[408305336,1773386690937,-845.74,0.00036909,120]
[408305337,1773386690973,-828.16,0.00036909,120]
[408305338,1773386691009,-500.0,0.00036909,120]
[408305339,1773386691045,-4270.32,0.00036909,120]
[408305340,1773386691083,-845.74,0.00036909,120]
[408305341,1773386691119,-500.0,0.00036909,120]
[408305342,1773386691154,-828.16,0.00036909,120]
[408305343,1773386691190,-500.0,0.00036909,120]
[408305344,1773386691228,-4270.32,0.00036909,120]
[408305345,1773386691267,-500.0,0.00036909,120]
[408305346,1773386691477,-845.74,0.00036909,120]
[408305347,1773386691524,-828.16,0.00036909,120]
[408305348,1773386691570,-500.0,0.00036909,120]
[408305349,1773386691617,-4270.32,0.00036909,120]
[408305350,1773386691664,-500.0,0.00036909,120]
[408305351,1773386691709,-845.74,0.00036909,120]
[408305352,1773386691755,-828.16,0.00036909,120]
[408305353,1773386691798,-802.9,0.00036909,120]
[408305354,1773386691838,-601.88371208,0.00036909,120]
[408305355,1773386691878,-4270.32,0.00036909,120]
[408305356,1773386691917,-14525.9,0.00036909,120]
[408305357,1773386691955,-500.0,0.00036909,120]
[408305358,1773386691992,-845.74,0.00036909,120]
[408305359,1773386692030,-828.16,0.00036909,120]
[408305360,1773386692070,-802.9,0.00036909,120]
[408305361,1773386692108,-4270.32,0.00036909,120]
[408305362,1773386692147,-14525.9,0.00036909,120]
[408305363,1773386692186,-500.0,0.00036909,120]
[408305364,1773386692225,-828.16,0.00036909,120]
[408305365,1773386692264,-845.74,0.00036909,120]
[408305366,1773386692304,-802.9,0.00036909,120]
[408305367,1773386692343,-4270.49639474,0.00036909,120]
[408305368,1773386692382,-14525.9,0.00036909,120]
[408305369,1773386692425,-505.01375868,0.00036909,120]
[408305370,1773386692469,-828.16,0.00036909,120]
[408305371,1773386692510,-845.74,0.00036909,120]
[408305372,1773386692548,-802.9,0.00036909,120]
[408305373,1773386692588,-14525.9,0.00036909,120]
[408305374,1773386692630,-828.16,0.00036909,120]
[408305375,1773386692671,-845.74,0.00036909,120]
[408305376,1773386692714,-400.7874904,0.00036909,120]
[408305377,1773386698006,-158.04095922,0.00010212,120]
[408305378,1773386698057,-951.41763123,0.00013553,120]
[408305379,1773386698115,-200.0,0.00015188,120]
[408305380,1773386698160,-200.0,0.00016921,120]
[408305381,1773386698207,-200.0,0.00018578,120]
[408305382,1773386698245,-200.0,0.00018601,120]
[408305383,1773386698286,-200.0,0.00019024,120]
[408305384,1773386698330,-200.0,0.00019571,120]
[408305385,1773386698567,-200.0,0.0002082,120]
[408305386,1773386698617,-200.0,0.00021296,120]
[408305387,1773386698664,-200.0,0.00021381,120]
[408305388,1773386698709,-161.0,0.00021389,120]
[408305389,1773386698756,-200.0,0.00022202,120]
[408305390,1773386698799,-161.0,0.00022458,120]
[408305391,1773386698842,-856.0,0.00022577,120]
[408305392,1773386698881,-161.0,0.00023581,120]
[408305393,1773386698919,-856.0,0.00023706,120]
[408305394,1773386698962,-428.0,0.00023765,120]
[408305395,1773386699004,-200.0,0.00024752,120]
[408305396,1773386699041,-161.0,0.0002476,120]
[408305397,1773386699080,-856.0,0.00024891,120]
[408305398,1773386699119,-428.0,0.00024954,120]
[408305399,1773386699159,-200.0,0.00025633,120]
[408305400,1773386699197,-200.0,0.00025678,120]
[408305401,1773386699236,-161.0,0.00025998,120]
[408305402,1773386699276,-754.92558224,0.00026,120]
[408305403,1773386699315,-856.0,0.00026136,120]
[408305404,1773386699356,-1444.0,0.00026137,120]
[408305405,1773386699398,-428.0,0.00026201,120]
[408305406,1773386699444,-1026.24758,0.00027,120]
[408305407,1773386699483,-464.75855,0.00027,120]
[408305408,1773386699521,-200.0,0.00027,120]
[408305409,1773386699559,-200.0,0.00027,120]
[408305410,1773386699596,-331.33469,0.00027,120]
[408305411,1773386699637,-1262.98874,0.00027,120]
[408305412,1773386699681,-1262.98874,0.00027,120]
[408305413,1773386699726,-1262.98874,0.00027,120]
[408305414,1773386699770,-1262.98874,0.00027,120]
[408305415,1773386699816,-1262.98874,0.00027,120]
[408305416,1773386699859,-1262.98874,0.00027,120]
[408305417,1773386699903,-1262.98874,0.00027,120]
[408305418,1773386699945,-1262.98874,0.00027,120]
[408305419,1773386699986,-1262.98881,0.00027,120]
[408305420,1773386700027,-333.53845,0.00027,120]
[408305421,1773386700071,-200.0,0.00027359,120]
[408305422,1773386700112,-438.74641532,0.00027397,120]
[408305423,1773386700156,-500.0,0.00027397,120]
[408305424,1773386700197,-500.0,0.00027397,120]
[408305425,1773386700240,-500.0,0.00027397,120]
[408305426,1773386700286,-500.0,0.00027397,120]
[408305427,1773386700329,-500.0,0.00027397,120]
[408305428,1773386700371,-500.0,0.00027397,120]
[408305429,1773386700414,-500.0,0.00027397,120]
[408305430,1773386700456,-500.0,0.00027397,120]
[408305431,1773386700502,-500.0,0.00027397,120]
[408305432,1773386700545,-500.0,0.00027397,120]
[408305433,1773386700585,-500.0,0.00027397,120]
[408305434,1773386700626,-500.0,0.00027397,120]
[408305435,1773386700672,-500.0,0.00027397,120]
[408305436,1773386700721,-500.0,0.00027397,120]
[408305437,1773386700770,-500.0,0.00027397,120]
[408305438,1773386700816,-501.67637574,0.00027397,120]
[408305439,1773386700865,-1000.0,0.00027397,120]
[408305440,1773386700908,-2319.0,0.00027397,120]
[408305441,1773386700949,-10000.0,0.00027397,120]
[408305442,1773386700990,-1000.0,0.00027397,120]
[408305443,1773386701030,-400.0,0.000274,120]
[408305444,1773386701070,-856.0,0.00027443,120]
[408305445,1773386701109,-428.0,0.00027511,120]
[408305446,1773386701148,-218.03025165,0.00027561,120]
[408305447,1773386701186,-200000.0,0.00028,120]
[408305448,1773386701228,-37959.51351579,0.00028,120]
[408305449,1773386701269,-11667.89778487,0.00028,120]
[408305450,1773386701309,-200.0,0.00028064,120]
[408305451,1773386701347,-500.0,0.000284,120]
[408305452,1773386701384,-725.40756293,0.0002849,120]
[408305453,1773386701422,-17509.2126657,0.000285,120]
[408305454,1773386701463,-1197.29285162,0.0002876,120]
[408305455,1773386701504,-200.0,0.00028786,120]
[408305456,1773386701545,-428.0,0.00028887,120]
[408305457,1773386701586,-279.8641,0.00029,120]
[408305458,1773386701628,-353.0,0.00029,120]
[408305459,1773386701672,-200000.0,0.00029,120]
[408305460,1773386701720,-500.0,0.0002998,120]
[408305461,1773386701766,-300.0,0.0003,120]
[408305462,1773386701812,-490.0,0.0003,120]
[408305463,1773386701855,-10000.0,0.0003,120]
[408305464,1773386701896,-307.29214595,0.0003,120]
[408305465,1773386701937,-350.0,0.0003,120]
[408305466,1773386701976,-1000.0,0.0003,120]
[408305467,1773386702013,-200000.0,0.0003,120]
[408305468,1773386702049,-1572.5,0.0003,120]
[408305469,1773386702087,-3207.38954178,0.0003,120]
[408305470,1773386702127,-200.0,0.0003,120]
[408305471,1773386702167,-22765.34499629,0.0003,120]
[408305472,1773386702206,-295.17496418,0.0003,120]
[408305473,1773386702244,-1421.0907864,0.0003013,120]
[408305474,1773386702283,-2093.4,0.00030136,120]
[408305475,1773386702326,-1000.0,0.00030137,120]
[408305476,1773386702367,-2033.3496414,0.00030137,120]
[408305477,1773386705781,975.02702478,0.00026137,120]
[408305478,1773386708141,2317.74,0.000301,120]
[408305479,1773386728376,1089.0,0.00027951,120]
[408305480,1773386729623,1089.0,0.00029348,120]
[408305481,1773386732767,5000.0,0.00030136,120]
[408305482,1773386767136,1158.87,0.000301,120]
[408305483,1773386769629,11675.82268,0.00030136,120]
[408305484,1773386772876,5000.0,0.00030136,120]
[408305485,1773386803976,155.0,0.000301,120]
[408305486,1773386812981,292.93837436,0.00030136,120]
[408305487,1773386813050,904.031,0.00030127,120]
[408305488,1773386817144,156.704935,0.000301,120]
[408305489,1773386820995,904.031,0.00030127,120]
[408305490,1773386826996,579.44,0.000301,120]
[408305491,1773386830234,904.031,0.00030127,120]
[408305492,1773386837333,904.031,0.00030127,120]
[408305493,1773386838331,37074.50857381,0.00030136,120]
[408305494,1773386845433,904.031,0.00030127,120]
[408305495,1773386853590,904.031,0.00030127,120]
[408305496,1773386856034,1073.375768,0.00030136,120]
[408305497,1773386887064,429.44,0.000301,120]
[408305499,1773386909023,273.3932,0.00030136,120]
[408305500,1773386916790,904.031,0.00030127,120]
[408305501,1773387003806,156.28,2e-05,2]
[408305502,1773387004176,156.28,2e-05,2]
[408305503,1773387004541,156.28,2e-05,2]
[408305504,1773387004924,156.28,2e-05,2]
[408305505,1773387010168,653.0,0.00028087,120]
[408305506,1773387010964,156.28,2.001e-05,2]
[408305507,1773387011411,653.0,0.00029492,120]
[408305508,1773387024305,-156.28,2.1e-05,2]
[408305509,1773387024346,-156.28,2.1e-05,2]
[408305510,1773387024387,-156.28,2.1e-05,2]
[408305511,1773387024428,-143.47,2.1e-05,2]
[408305512,1773387024536,-12.81,2.1e-05,2]
[408305546,1773387031648,-156.28,2.1e-05,2]
[408305548,1773387031658,-156.28,2.1e-05,2]
[408305550,1773387031668,-156.28,2.1e-05,2]
[408305553,1773387031679,-156.28,2.1e-05,2]
[408305555,1773387031692,-156.28,2.2e-05,2]
[408305556,1773387031701,-156.28,2.2e-05,2]
[408305559,1773387031711,-156.28,2.2e-05,2]
[408305560,1773387031720,-5000.0,8.53e-05,10]
[408305563,1773387031731,-1600.0,8.616e-05,10]
[408305565,1773387031740,-543.0,8.791e-05,2]
[408305566,1773387031750,-559.0,9.051e-05,2]
[408305569,1773387031759,-300.0,9.052e-05,2]
[408305571,1773387031770,-300.0,9.052e-05,2]
[408305573,1773387031779,-300.0,9.052e-05,2]
[408305575,1773387031789,-500.0,9.053e-05,2]
[408305576,1773387031799,-500.0,9.053e-05,2]
[408305579,1773387031808,-500.0,9.053e-05,2]
[408305581,1773387031818,-500.0,9.053e-05,2]
[408305583,1773387031827,-2924.77714944,9.073e-05,2]
[408305585,1773387031839,-14665.85428913,9.073e-05,2]
[408305587,1773387031850,-440.41335325,9.073e-05,2]
[408305589,1773387031861,-1218.08384766,9.073e-05,2]
[408305591,1773387031871,-1018.64750205,9.073e-05,2]
[408305671,1773387038523,-1720.30055279,9.073e-05,2]
[408305672,1773387038557,-443.51329604,9.073e-05,2]
[408305689,1773387040274,-687.95104459,9e-05,2]
[408305693,1773387040445,-3136.04606105,9e-05,2]
[408305765,1773387043036,-5807.11482503,9e-05,2]
[408305766,1773387043048,-4246.33321075,9e-05,2]
[408305767,1773387043059,-4814.99999986,9e-05,2]
[408305768,1773387043071,-3503.03870997,9e-05,2]
[408305770,1773387045797,-2907.29887748,9e-05,2]
[408305771,1773387045873,-25251.74615315,9e-05,2]
[408305775,1773387115680,500.0,0.0003,120]
[408305776,1773387122734,2006.18,0.00030136,120]
[408305777,1773387125533,1000.0,0.0003,120]
[408305778,1773387145748,1556.89457379,0.0003,120]
[408305779,1773387156196,1500.0,0.0003,120]
[408305781,1773387243071,869.95429698,0.00030137,120]
[408305783,1773387316908,327.0,0.00028669,120]
[408305785,1773387319608,327.0,0.00030102,120]
[408305786,1773387366507,15000.0,0.00019,120]
[408305787,1773387411018,1444.0,0.00026137,120]
[408305791,1773387597974,-2000.0,8.811e-05,2]
[408305792,1773387599040,-2000.0,8.811e-05,2]
[408305793,1773387599341,-1000.0,8.811e-05,2]
[408305794,1773387599362,-300.0,8.899e-05,2]
[408305795,1773387599385,-451.77027476,8.9e-05,2]
[408305796,1773387599408,-248.22972524,8.9e-05,2]
[408305797,1773387599755,-2000.0,8.9e-05,2]
[408305798,1773387600181,-2000.0,8.9e-05,2]
[408305799,1773387600581,-2000.0,8.9e-05,2]
[408305800,1773387600897,-2000.0,8.9e-05,2]
[408305801,1773387601202,-2000.0,8.9e-05,2]
[408305802,1773387601807,-2000.0,8.9e-05,2]
[408305803,1773387601920,-2000.0,8.9e-05,2]
[408305804,1773387602262,-2000.0,8.9e-05,2]
[408305805,1773387602705,-300.0,8.899e-05,2]